bitfinex-derivatives/quotes_ETHF0:USTF0_20241005
["timestamp","ask_amount","ask_price","bid_price","bid_amount"]
[1728117725215,0.28949,2417.9,2417.8,0.425]
[1728117726418,1.25166706,2417.9,2417.8,0.425]
[1728117727527,0.28949,2417.9,2417.8,0.425]
[1728117730113,0.28949,2417.9,2417.8,0.3898]
[1728117730324,1.25454725,2417.9,2417.8,0.3898]
[1728117732324,1.60627429,2417.9,2417.8,0.3898]
[1728117733015,1.60627203,2417.9,2417.8,0.3898]
[1728117734325,1.25454725,2417.9,2417.8,0.3898]
[1728117737328,4.50304959,2417.9,2417.8,0.3898]
[1728117738826,1.25454725,2417.9,2417.8,0.3898]
[1728117739124,0.96505725,2417.9,2417.8,0.3898]
[1728117739331,1.25454725,2417.9,2417.8,0.3898]
[1728117739925,4.50304959,2417.9,2417.8,0.3898]
[1728117740125,1.25454725,2417.9,2417.8,0.3898]
[1728117740628,1.6136609,2417.9,2417.8,0.3898]
[1728117741522,6.59772444,2417.9,2417.7,0.16532062]
[1728117741722,1.37248711,2417.8,2417.7,0.16532062]
[1728117742427,0.76881365,2417.8,2417.7,0.16532062]
[1728117742829,0.4097,2417.8,2417.7,0.16532062]
[1728117743030,1.73432344,2417.8,2417.7,0.16532062]
[1728117743227,1.05829681,2417.8,2417.7,0.16532062]
[1728117746334,0.6992,2417.8,2417.7,0.16532062]
[1728117746528,1.0438163,2417.8,2417.7,0.16532062]
[1728117747329,2.00936236,2417.8,2417.6,1.13072]
[1728117747534,0.69921,2417.8,2417.6,1.13072]
[1728117747729,3.00371475,2417.7,2417.6,0.8412]
[1728117747933,0.28951,2417.7,2417.6,1.13072]
[1728117748445,0.28951,2417.7,2417.6,0.71082]
[1728117748933,1.10541,2417.8,2417.6,0.71082]
[1728117749435,0.8159,2417.8,2417.6,0.4213]
[1728117749831,0.28951,2417.7,2417.6,0.71082]
[1728117750538,1.10541,2417.8,2417.6,0.71082]
[1728117750929,0.28951,2417.7,2417.6,0.71082]
[1728117751135,0.8159,2417.8,2417.6,0.71082]
[1728117751428,1.10541,2417.8,2417.6,0.71082]
[1728117751636,0.35152923,2417.7,2417.6,0.71082]
[1728117752131,0.64103923,2417.7,2417.6,0.71082]
[1728117752332,0.35152923,2417.7,2417.6,0.71082]
[1728117752638,1.10541,2417.8,2417.6,0.71082]
[1728117753736,0.28951,2417.7,2417.6,0.71082]
[1728117754335,1.10541,2417.8,2417.6,0.71082]
[1728117755036,0.28952,2417.6,2417.5,0.4035]
[1728117755340,4.63475143,2417.7,2417.5,0.4035]
[1728117755540,0.96531763,2417.6,2417.5,0.69303]
[1728117755742,0.96530688,2417.6,2417.5,0.69303]
[1728117756042,3.66930234,2417.7,2417.5,0.4035]
[1728117756240,0.28952,2417.6,2417.5,0.4035]
[1728117756429,4.50326605,2417.6,2417.5,0.4035]
[1728117756633,1.25476371,2417.6,2417.5,0.4035]
[1728117757339,4.50326605,2417.6,2417.5,0.4035]
[1728117757541,1.25476371,2417.6,2417.5,0.4035]
[1728117760345,1.25430129,2417.6,2417.5,0.4035]
[1728117761144,0.28952,2417.6,2417.5,0.4035]
[1728117761644,0.63218885,2417.6,2417.5,0.4035]
[1728117762439,1.59682931,2417.6,2417.5,0.4035]
[1728117762647,1.25416046,2417.6,2417.5,0.4035]
[1728117763044,0.28955,2417.4,2417.3,0.4211]
[1728117763249,2.71188895,2417.4,2417.3,0.4211]
[1728117763546,0.28955,2417.4,2417.3,0.4211]
[1728117765549,3.00064319,2417.4,2417.3,0.4211]
[1728117770651,3.35555345,2417.4,2417.3,0.4211]
[1728117772351,3.00064319,2417.4,2417.3,0.4211]
[1728117772746,3.34426758,2417.4,2417.3,0.4211]
[1728117775356,3.05471758,2417.4,2417.3,0.4211]
[1728117775562,3.34426758,2417.4,2417.3,0.4211]
[1728117775758,3.34422561,2417.4,2417.3,0.4211]
[1728117778061,3.05467561,2417.4,2417.3,0.4211]
[1728117779770,3.34422561,2417.4,2417.3,0.4211]
[1728117779964,3.05467561,2417.4,2417.3,0.4211]
[1728117780165,3.34422561,2417.4,2417.3,0.4211]
[1728117780870,3.93840069,2417.4,2417.3,0.4211]
[1728117781364,3.00064319,2417.4,2417.3,0.4211]
[1728117781560,3.96616659,2417.4,2417.3,0.4211]
[1728117781767,3.37199834,2417.4,2417.3,0.4211]
[1728117783175,3.08244834,2417.4,2417.3,0.4211]
[1728117783372,3.37199834,2417.4,2417.3,0.4211]
[1728117784783,3.34265089,2417.4,2417.3,0.4211]
[1728117787779,3.00064319,2417.4,2417.3,0.4211]
[1728117788177,2.71109319,2417.4,2416.9,3.3038]
[1728117788379,2.71109319,2417.4,2417.1,0.28958]
[1728117788380,3.41434319,2417.4,2417.1,0.28958]
[1728117788574,3.12479319,2417.4,2417.1,0.28958]
[1728117789779,3.41434319,2417.4,2417.1,0.28958]
[1728117789979,2.71109319,2417.5,2417.2,7.3446]
[1728117790184,2.71109319,2417.7,2417.3,4.9717]
[1728117790483,2.71109319,2417.7,2417.5,0.28953]
[1728117790685,2.71109319,2417.7,2417.6,0.8349]
[1728117791384,2.71109319,2417.7,2417.6,1.2564]
[1728117792192,2.71109319,2417.7,2417.6,1.54592]
[1728117793385,3.00060319,2417.7,2417.6,0.4084]
[1728117793884,0.28951,2417.7,2417.6,0.4084]
[1728117794092,0.4173,2417.7,2417.4,0.8266]
[1728117794280,2.99963272,2417.6,2417.4,0.8266]
[1728117794686,0.4123,2417.5,2417.4,0.8266]
[1728117794883,2.71010272,2417.6,2417.4,4.9634]
[1728117795082,0.4099,2417.8,2417.7,0.28951]
[1728117795283,3.12019781,2417.8,2417.7,0.28951]
[1728117795482,3.12019781,2417.8,2417.5,0.4123]
[1728117795679,2.71044384,2417.7,2417.6,0.28952]
[1728117796185,3.12034384,2417.8,2417.6,0.28952]
[1728117796385,2.71044384,2417.7,2417.6,0.28952]
[1728117796889,2.71044384,2417.7,2417.5,0.70183]
[1728117796890,2.99996384,2417.7,2417.5,0.70183]
[1728117797086,3.41256384,2417.7,2417.5,0.70183]
[1728117797684,3.12304384,2417.7,2417.6,0.28952]
[1728117797883,3.41256384,2417.7,2417.5,0.70183]
[1728117798585,2.71044384,2417.6,2417.5,0.70183]
[1728117799988,2.99996384,2417.6,2417.5,0.70183]
[1728117800184,2.99996384,2417.6,2417.5,0.4123]
[1728117800384,0.28954,2417.5,2417.3,0.28955]
[1728117800697,3.39058384,2417.5,2417.3,0.28955]
[1728117801993,0.3465099,2417.4,2417.3,0.28955]
[1728117807700,3.39058384,2417.5,2417.3,0.28955]
[1728117807890,0.34649325,2417.4,2417.3,0.28955]
[1728117811088,3.39058384,2417.5,2417.3,0.28955]
[1728117812199,0.34070223,2417.4,2417.3,0.28955]
[1728117812598,3.39058384,2417.5,2417.3,0.28955]
[1728117812792,0.34070419,2417.4,2417.3,0.28955]
[1728117813098,0.28955,2417.4,2417.3,0.28955]
[1728117819497,0.28955,2417.4,2417.2,0.28956]
[1728117821204,0.35737105,2417.3,2417.2,0.28956]
[1728117822709,0.64694105,2417.3,2417.1,1.52288]
[1728117823003,0.35737105,2417.2,2417.1,1.12368]
[1728117823207,0.4114,2417.2,2417.1,5.67118]
[1728117823802,0.4114,2417.2,2417.1,1.53438]
[1728117824200,0.4114,2417.2,2417.1,5.67118]
[1728117824400,0.4114,2417.2,2417.1,1.53438]
[1728117825105,0.4114,2417.2,2417.1,5.67118]
[1728117827004,0.4114,2417.2,2417.1,8.87898]
[1728117827408,0.4114,2417.2,2417.1,5.67118]
[1728117828013,0.4114,2417.2,2417.1,8.87898]
[1728117828214,0.4114,2417.2,2417.1,5.67118]
[1728117829005,0.4114,2417.2,2417.1,8.87898]
[1728117829418,0.4114,2417.2,2417.1,5.67118]
[1728117830008,0.4114,2417.2,2417.1,8.87898]
[1728117830406,0.4114,2417.2,2417.1,5.67118]
[1728117830708,0.4114,2417.2,2417.1,8.87898]
[1728117831215,0.76572517,2417.2,2417.1,4.74218]
[1728117831607,0.76572517,2417.2,2417.1,5.82599004]
[1728117833405,0.4114,2417.2,2417.1,5.82599004]
[1728117838412,0.4114,2417.2,2417.1,2.61819004]
[1728117838621,0.4114,2417.2,2417.1,5.82599004]
[1728117841414,0.4114,2417.2,2417.1,7.22672668]
[1728117842620,0.4114,2417.2,2417.1,7.22693138]
[1728117844017,0.4114,2417.2,2417.1,7.22894775]
[1728117844417,0.4114,2417.2,2417.1,4.5610364]
[1728117844617,0.4114,2417.2,2417.1,7.7688364]
[1728117844811,0.4114,2417.2,2417.1,6.14312134]
[1728117845012,0.4114,2417.2,2417.1,7.22905458]
[1728117845411,0.4114,2417.2,2417.1,7.7688364]
[1728117847614,0.4114,2417.2,2417.1,7.76935088]
[1728117848719,0.4114,2417.2,2417.1,3.16009506]
[1728117848925,0.4114,2417.2,2417.1,4.5615536]
[1728117851425,0.76288271,2417.2,2417.1,4.5615536]
[1728117851722,0.76288397,2417.2,2417.1,4.5615536]
[1728117852127,0.4114,2417.2,2417.1,4.5615536]
[1728117852322,0.76288408,2417.2,2417.1,4.5615536]
[1728117852524,0.4114,2417.2,2417.1,4.5615536]
[1728117852830,0.75317242,2417.2,2417.1,4.5615536]
[1728117853517,0.4114,2417.2,2417.1,4.5615536]
[1728117861543,1.36934395,2417.2,2417.1,4.5615536]
[1728117861940,1.36934176,2417.2,2417.1,4.5615536]
[1728117862535,0.4114,2417.2,2417.1,4.56170261]
[1728117867433,0.4114,2417.2,2417.1,4.59692019]
[1728117871551,0.7671822,2417.2,2417.1,4.59692019]
[1728117872157,0.4114,2417.2,2417.1,4.59692019]
[1728117872457,0.76718051,2417.2,2417.1,4.59551187]
[1728117872747,0.4114,2417.2,2417.1,4.59551187]
[1728117874650,3.12184384,2417.2,2417.1,4.59551187]
[1728117874849,0.4114,2417.2,2417.1,4.59551187]
[1728117876552,0.4114,2417.2,2417.1,4.18481187]
[1728117876748,3.12184384,2417.2,2417.1,4.18481187]
[1728117877442,0.4114,2417.2,2417.1,4.18481187]
[1728117878545,3.12184384,2417.2,2417.1,4.18481187]
[1728117879145,0.4114,2417.2,2417.1,4.18481187]
[1728117879546,0.76483445,2417.2,2417.1,4.18481187]
[1728117882157,0.4114,2417.2,2417.1,4.18481187]
[1728117882352,0.76005737,2417.2,2417.1,4.18486644]
[1728117882756,0.4114,2417.2,2417.1,4.18486644]
[1728117887151,0.4114,2417.2,2417.1,4.18489481]
[1728117889545,3.12184384,2417.2,2417.1,3.64451024]
[1728117889757,0.4114,2417.2,2417.1,4.14969481]
[1728117890655,1.00115821,2417.2,2417.1,4.14969481]
[1728117890859,1.36975709,2417.2,2417.1,4.14969481]
[1728117891660,0.4114,2417.2,2417.1,4.14969481]
[1728117891961,1.36977516,2417.2,2417.1,4.14969481]
[1728117892264,1.36977516,2417.2,2417.1,4.1497512]
[1728117892854,0.78000583,2417.2,2417.1,4.1497512]
[1728117894872,0.4114,2417.2,2417.1,4.1497512]
[1728117896553,3.12444384,2417.3,2417.2,0.28957]
[1728117896554,2.71044384,2417.3,2417.2,0.28957]
[1728117896757,2.71044384,2417.3,2417.2,1.37476185]
[1728117897053,2.71044384,2417.3,2417.2,3.16545826]
[1728117898470,3.10626017,2417.4,2417.3,0.28956]
[1728117898666,3.10626017,2417.4,2417.3,1.37457618]
[1728117899462,0.3908,2417.4,2417.3,0.28956]
[1728117899661,3.10608458,2417.4,2417.3,0.28956]
[1728117899968,3.10608458,2417.4,2417.3,1.37457618]
[1728117900868,3.46603882,2417.4,2417.3,1.37457618]
[1728117901265,3.46603882,2417.4,2417.3,0.28956]
[1728117901460,3.07523882,2417.4,2417.3,1.37457618]
[1728117901667,0.35995424,2417.4,2417.3,3.31498783]
[1728117902265,0.35995424,2417.4,2417.3,2.77402833]
[1728117902465,3.07523882,2417.4,2417.3,1.37431556]
[1728117902673,3.07523882,2417.4,2417.3,2.77396331]
[1728117902674,0.35995424,2417.4,2417.3,2.77396331]
[1728117902971,2.71528458,2417.5,2417.4,0.28955]
[1728117903975,2.71528458,2417.5,2417.4,1.52935]
[1728117905766,3.13338458,2417.5,2417.4,1.52935]
[1728117912072,3.48560857,2417.5,2417.4,1.52935]
[1728117912266,3.48560857,2417.5,2417.4,1.2398]
[1728117912677,1.05986399,2417.5,2417.2,4.58212556]
[1728117912876,3.35552322,2417.4,2417.2,4.58212556]
[1728117913177,0.35222399,2417.3,2417.2,4.58212556]
[1728117913373,0.76062399,2417.3,2417.2,4.58212556]
[1728117913679,0.76063673,2417.3,2417.2,4.58212556]
[1728117913876,0.4084,2417.3,2417.2,4.58212556]
[1728117915067,0.4084,2417.3,2417.2,1.37432556]
[1728117917477,0.4084,2417.3,2417.2,5.51112556]
[1728117918083,0.4084,2417.3,2417.2,6.91102419]
[1728117918277,0.4084,2417.3,2417.2,5.51112556]
[1728117918779,0.4084,2417.3,2417.2,2.774214]
[1728117918977,0.4084,2417.3,2417.2,1.37432556]
[1728117921181,0.4084,2417.3,2417.2,2.77423639]
[1728117921388,3.14114923,2417.5,2417.4,0.28955]
[1728117922081,3.49259925,2417.5,2417.4,1.12125]
[1728117922990,3.14114923,2417.5,2417.4,1.12125]
[1728117927985,3.14114923,2417.5,2417.3,1.49251924]
[1728117927986,3.43068923,2417.5,2417.3,1.08481924]
[1728117928190,3.83988923,2417.5,2417.3,1.08481924]
[1728117928386,3.83988923,2417.5,2417.3,0.28956]
[1728117929080,3.83988923,2417.5,2417.3,1.37437924]
[1728117929686,3.00328923,2417.5,2417.3,1.37437924]
[1728117929877,3.43685158,2418.3,2417.9,0.28949]
[1728117930078,3.65450234,2418.7,2418.2,1.37326205]
[1728117930384,3.65450234,2418.7,2418.1,4.83353308]
[1728117930385,0.406,2418.7,2418.3,0.28943]
[1728117930979,0.406,2418.7,2418.4,0.54485254]
[1728117931289,0.406,2418.7,2418.3,0.28944]
[1728117931889,0.406,2418.7,2418.1,3.2078]
[1728117931890,0.406,2418.7,2418.2,0.28945]
[1728117933091,0.406,2418.7,2418.3,0.28943]
[1728117934390,0.69539,2418.7,2418.2,0.28945]
[1728117934590,0.69539,2418.7,2418.2,0.28944]
[1728117934797,0.69539,2418.7,2418.0,0.3914]
[1728117934995,0.69539,2418.7,2418.3,0.28944]
[1728117935592,4.1344,2418.6,2418.3,0.28944]
[1728117936100,4.5305,2418.5,2418.3,0.28944]
[1728117936390,0.3953,2418.5,2418.3,0.28944]
[1728117936590,4.5318,2418.4,2418.3,0.28944]
[1728117937498,4.5318,2418.4,2417.9,0.3892]
[1728117937699,0.4249,2418.3,2418.2,0.28944]
[1728117938090,4.5601,2418.3,2418.2,0.28944]
[1728117939691,4.5601,2418.3,2417.9,0.3892]
[1728117939886,0.4249,2418.3,2418.1,0.28946]
[1728117940697,0.4249,2418.3,2417.8,3.2078]
[1728117940997,0.4249,2418.3,2418.2,0.28945]
[1728117941393,4.5601,2418.3,2418.2,0.28945]
[1728117941990,4.5601,2418.3,2417.8,3.2078]
[1728117942198,0.4249,2418.3,2418.0,0.28947]
[1728117942391,0.71434,2418.3,2418.0,0.28947]
[1728117942588,0.4249,2418.3,2418.0,0.28947]
[1728117942896,0.4249,2418.3,2417.9,0.28948]
[1728117942897,0.28945,2418.2,2417.9,0.28948]
[1728117943193,0.411,2418.1,2417.9,0.28948]
[1728117943394,0.70047,2418.1,2417.8,3.4973]
[1728117943694,0.4096,2418.0,2417.8,3.4973]
[1728117943907,0.4149,2417.9,2417.8,3.4973]
[1728117958604,4.5509,2417.9,2417.5,3.2078]
[1728117958907,4.5509,2417.9,2417.3,0.7713]
[1728117958908,0.70439,2417.9,2417.6,0.28952]
[1728117959504,3.11657217,2417.9,2417.6,0.28952]
[1728117959813,3.2078,2417.8,2417.6,0.28952]
[1728117960003,0.3891,2417.7,2417.6,0.28952]
[1728117960206,0.7745,2417.7,2417.6,0.28952]
[1728117967112,0.7745,2417.7,2417.5,0.28953]
[1728117967312,0.7745,2417.7,2417.6,0.28952]
[1728117970405,0.7745,2417.7,2417.5,0.28953]
[1728117970814,0.7745,2417.7,2417.3,1.1139]
[1728117971013,0.7745,2417.7,2417.6,0.28952]
[1728117971214,0.7745,2417.7,2417.5,0.28953]
[1728117972114,0.7745,2417.7,2417.3,4.3217]
[1728117972306,0.28953,2417.6,2417.3,3.6034]
[1728117972511,0.28953,2417.6,2417.3,3.89296]
[1728117972512,0.3864,2417.6,2417.3,3.89296]
[1728117972710,0.3864,2417.6,2417.3,3.49736]
[1728117973016,0.3864,2417.6,2417.4,0.28954]
[1728117974613,0.3864,2417.6,2417.3,3.2078]
[1728117974820,0.3864,2417.6,2417.5,0.28954]
[1728117977115,0.3864,2417.6,2417.3,3.6328]
[1728117977426,0.3864,2417.6,2417.4,0.28955]
[1728117978112,0.3864,2417.6,2417.3,3.6328]
[1728117978319,0.3864,2417.6,2417.4,0.28954]
[1728117985016,0.67593,2417.6,2417.4,0.28954]
[1728117986728,0.34819734,2417.5,2417.4,0.28954]
[1728117990623,3.37760217,2417.6,2417.4,0.28954]
[1728117995623,0.94891904,2417.5,2417.4,0.28954]
[1728117996723,0.35530487,2417.5,2417.4,0.28954]
[1728118000037,0.34792671,2417.5,2417.4,0.28954]
[1728118000629,3.37760217,2417.6,2417.4,0.28954]
[1728118001831,3.37760217,2417.6,2417.5,0.28954]
[1728118002141,3.37760217,2417.6,2417.4,0.28954]
[1728118002428,3.37760217,2417.6,2417.3,3.6328]
[1728118002429,2.70167217,2417.6,2417.3,3.6328]
[1728118002638,0.3854,2417.7,2417.6,0.28952]
[1728118004234,0.3854,2417.7,2417.5,0.3312]
[1728118004235,3.08707217,2417.7,2417.5,0.3312]
[1728118004430,3.08707217,2417.7,2417.5,0.62073]
[1728118005339,2.70167217,2417.8,2417.5,5.55102205]
[1728118005536,3.93647217,2417.9,2417.6,4.68172205]
[1728118005736,3.93647217,2417.9,2417.8,0.2895]
[1728118005932,3.10957217,2417.9,2417.7,0.4174]
[1728118006131,3.10957217,2417.9,2417.7,0.7069]
[1728118006841,0.34808804,2417.8,2417.7,0.7069]
[1728118009839,3.10957217,2417.9,2417.7,0.7069]
[1728118011737,2.70167217,2417.8,2417.7,0.7069]
[1728118015241,3.10957217,2417.9,2417.7,0.7069]
[1728118015442,2.70167217,2417.8,2417.7,0.7069]
[1728118015841,0.34409538,2417.8,2417.7,0.7069]
[1728118016038,3.04576755,2417.8,2417.7,0.7069]
[1728118016242,0.34409538,2417.8,2417.7,0.7069]
[1728118016544,0.34407627,2417.8,2417.7,0.7069]
[1728118019239,0.34403821,2417.8,2417.7,0.7069]
[1728118020241,0.34402771,2417.8,2417.7,0.7069]
[1728118020447,0.34402771,2417.8,2417.7,0.2895]
[1728118025340,0.34398603,2417.8,2417.7,0.2895]
[1728118028856,0.76078603,2417.8,2417.7,0.2895]
[1728118031454,0.76078603,2417.8,2417.6,3.49732]
[1728118031650,0.34398603,2417.7,2417.6,0.28952]
[1728118032648,0.34398603,2417.7,2417.3,4.29162205]
[1728118032859,1.12178603,2417.6,2417.4,0.28954]
[1728118033052,0.4276,2417.5,2417.4,0.28954]
[1728118033957,0.77862989,2417.5,2417.4,0.28954]
[1728118034750,0.77862989,2417.5,2417.4,1.70517047]
[1728118034958,0.77862989,2417.5,2417.4,2.78853147]
[1728118037554,0.77862989,2417.5,2417.4,5.99633147]
[1728118037953,0.77862989,2417.5,2417.4,6.53870355]
[1728118038155,0.4276,2417.5,2417.4,6.53870355]
[1728118038461,0.77169123,2417.5,2417.4,6.53870355]
[1728118043061,0.4276,2417.5,2417.4,6.53870355]
[1728118044061,0.4276,2417.5,2417.4,2.78936647]
[1728118044267,0.4276,2417.5,2417.4,1.70517047]
[1728118044460,0.4276,2417.5,2417.4,1.70643946]
[1728118044657,0.4276,2417.5,2417.4,3.33217254]
[1728118045268,1.4386156,2417.5,2417.4,3.33217254]
[1728118047070,0.81645215,2417.5,2417.4,3.33217254]
[1728118048270,0.81645215,2417.5,2417.4,3.33391037]
[1728118048658,0.4276,2417.5,2417.4,3.33391037]
[1728118048862,0.78088325,2417.5,2417.4,3.33391037]
[1728118049265,0.78088325,2417.5,2417.4,1.70747244]
[1728118049462,0.78088325,2417.5,2417.4,3.33515589]
[1728118051969,0.78091324,2417.5,2417.4,3.33515589]
[1728118053066,0.35331324,2417.5,2417.4,3.33515589]
[1728118053268,3.52137217,2417.9,2417.4,14.85809545]
[1728118053467,3.52137217,2417.9,2417.8,4.58221031]
[1728118053770,0.8197,2417.9,2417.8,4.58221031]
[1728118054172,1.2445,2417.9,2417.8,4.58221031]
[1728118055475,1.2445,2417.9,2417.8,6.00007873]
[1728118055675,1.2445,2417.9,2417.8,6.54253389]
[1728118055970,0.8524,2417.9,2417.8,6.54253389]
[1728118056373,2.70167217,2418.1,2417.8,10.38903389]
[1728118056567,2.70167217,2418.1,2418.0,1.37425263]
[1728118056568,0.4248,2418.1,2418.0,1.37425263]
[1728118056773,0.4259,2418.3,2418.0,1.41705501]
[1728118057072,0.4248,2418.4,2418.3,0.28944]
[1728118057273,0.4248,2418.4,2418.3,1.08408969]
[1728118057468,0.4248,2418.4,2418.3,0.28944]
[1728118057975,0.4248,2418.4,2418.2,1.37353969]
[1728118058580,0.4248,2418.4,2418.2,0.28945]
[1728118063573,0.4248,2418.4,2418.3,0.28944]
[1728118067082,0.4248,2418.4,2418.2,0.28944]
[1728118067584,0.4248,2418.4,2418.3,0.28944]
[1728118069276,0.4248,2418.4,2418.1,4.64170285]
[1728118069484,0.4248,2418.4,2418.2,0.28944]
[1728118071083,0.4248,2418.4,2418.1,4.31040285]
[1728118071283,0.4248,2418.4,2418.2,0.28944]
[1728118071481,0.4248,2418.4,2418.3,0.28944]
[1728118083894,0.4259,2418.6,2418.5,0.28942]
[1728118084096,0.699,2418.7,2418.3,4.1352]
[1728118084304,0.699,2418.7,2418.6,0.2894]
[1728118084901,0.699,2418.7,2418.6,0.7152]
[1728118085406,0.699,2418.7,2418.6,1.1086]
[1728118086306,0.699,2418.7,2418.6,0.4258]
[1728118086505,0.699,2418.7,2418.5,3.49721]
[1728118086707,0.3958,2418.6,2418.5,3.49721]
[1728118087205,0.3958,2418.6,2418.5,7.63161]
[1728118089106,0.3958,2418.6,2418.3,0.28943]
[1728118089298,0.3958,2418.6,2418.2,3.2078]
[1728118089299,0.3981,2418.5,2418.2,3.2078]
[1728118089506,0.4042,2418.4,2418.2,3.49725]
[1728118091613,0.4042,2418.4,2418.2,3.49724]
[1728118092113,0.4042,2418.4,2418.3,0.28944]
[1728118096513,0.76037863,2418.4,2418.3,0.28944]
[1728118098421,0.76037863,2418.4,2418.3,1.37352969]
[1728118098919,0.4042,2418.4,2418.3,1.37352969]
[1728118099127,0.76062892,2418.4,2418.3,1.37352969]
[1728118100728,0.76062892,2418.4,2418.3,3.32898173]
[1728118100921,0.76062892,2418.4,2418.3,3.32894863]
[1728118104625,0.76062892,2418.4,2418.3,3.58100222]
[1728118105724,0.76062892,2418.4,2418.3,2.16783229]
[1728118106021,0.76062892,2418.4,2418.3,3.58175204]
[1728118107526,1.35297515,2418.4,2418.3,3.58175204]
[1728118108432,0.77442173,2418.4,2418.3,3.58175204]
[1728118110227,0.77442173,2418.4,2418.3,3.58139223]
[1728118110430,0.77442173,2418.4,2418.3,3.58137099]
[1728118110633,0.77442173,2418.4,2418.3,3.58153931]
[1728118111232,0.77442173,2418.4,2418.3,1.95558166]
[1728118111428,0.77442173,2418.4,2418.3,3.58161302]
[1728118112132,0.77442173,2418.4,2418.3,1.95558166]
[1728118112931,0.77442173,2418.4,2418.3,3.581636]
[1728118113130,0.77442173,2418.4,2418.3,3.58163778]
[1728118113326,0.77442173,2418.4,2418.3,3.58165598]
[1728118113526,0.77442173,2418.4,2418.3,1.95558166]
[1728118114635,0.77442173,2418.4,2418.3,3.58166931]
[1728118114829,0.77442173,2418.4,2418.3,1.95558166]
[1728118116628,1.3694095,2418.4,2418.3,3.04031829]
[1728118117032,1.3694095,2418.4,2418.3,3.32975829]
[1728118117734,0.4042,2418.4,2418.3,3.32975829]
[1728118117928,1.37110042,2418.4,2418.3,3.04031829]
[1728118118135,1.37110042,2418.4,2418.3,3.32975829]
[1728118118333,1.37110042,2418.4,2418.3,3.04031829]
[1728118118734,0.77608478,2418.4,2418.3,3.04031829]
[1728118119830,0.4042,2418.4,2418.3,3.32975829]
[1728118120438,0.4042,2418.4,2418.3,3.33021877]
[1728118124841,0.4042,2418.4,2418.3,3.33050371]
[1728118125040,0.4042,2418.4,2418.3,1.70427349]
[1728118125226,0.4042,2418.4,2418.3,1.70425138]
[1728118125430,0.4042,2418.4,2418.3,3.33112974]
[1728118125640,0.4042,2418.4,2418.3,3.33120892]
[1728118125835,0.4042,2418.4,2418.3,1.70425138]
[1728118126737,0.76311394,2418.4,2418.3,1.70425138]
[1728118127129,0.4042,2418.4,2418.3,1.70425138]
[1728118127338,0.76311023,2418.4,2418.3,1.70425138]
[1728118128436,4.89831023,2418.4,2418.3,2.49974996]
[1728118128738,4.89831023,2418.4,2418.3,2.49974613]
[1728118129042,4.89831023,2418.4,2418.3,1.08493475]
[1728118129239,4.89831023,2418.4,2418.2,4.83488597]
[1728118129240,7.5999824,2418.4,2418.2,4.29273475]
[1728118129434,0.74521023,2418.3,2418.2,4.29273475]
[1728118129842,0.74521023,2418.3,2418.2,4.58218475]
[1728118130140,0.74521023,2418.3,2418.2,4.29273475]
[1728118131138,0.74521023,2418.3,2418.2,1.08493475]
[1728118131637,0.74521023,2418.3,2418.2,1.37438475]
[1728118131838,0.74521023,2418.3,2418.2,0.28945]
[1728118133342,0.73520684,2418.3,2418.2,0.28945]
[1728118136752,1.33794057,2418.3,2418.2,0.28945]
[1728118138945,0.73520684,2418.3,2418.2,0.28945]
[1728118141950,0.3863,2418.3,2418.2,0.28945]
[1728118146758,0.3863,2418.3,2418.2,1.37438475]
[1728118147853,0.3981,2418.5,2418.2,1.08493475]
[1728118148051,0.35806216,2418.4,2418.2,5.58298597]
[1728118148249,0.699,2418.7,2418.6,0.2894]
[1728118148560,1.05701052,2418.7,2418.6,3.4972]
[1728118148961,1.05701052,2418.7,2418.6,3.9145]
[1728118149860,0.699,2418.7,2418.6,3.9145]
[1728118150754,0.699,2418.7,2418.6,10.54715672]
[1728118151053,0.699,2418.7,2418.6,10.54712216]
[1728118151260,0.699,2418.7,2418.6,10.54693903]
[1728118151756,0.699,2418.7,2418.6,11.09055402]
[1728118151965,0.699,2418.7,2418.6,10.54663821]
[1728118152462,0.699,2418.7,2418.6,10.54646287]
[1728118152651,0.699,2418.7,2418.6,10.80278903]
[1728118152853,0.699,2419.0,2418.8,0.28938]
[1728118153051,1.1199,2419.1,2418.8,0.28938]
[1728118153257,1.1199,2419.1,2418.6,4.96455054]
[1728118153462,1.1199,2419.1,2418.7,1.37238952]
[1728118153872,1.40925,2419.1,2418.7,1.37238952]
[1728118154052,1.40925,2419.1,2418.7,0.28938]
[1728118156960,0.35322171,2419.0,2418.7,0.28938]
[1728118157172,0.35322171,2418.9,2418.7,0.28938]
[1728118157363,0.35322171,2418.8,2418.7,0.28938]
[1728118163266,0.35322171,2418.8,2418.7,3.49718]
[1728118163475,0.34181335,2418.8,2418.7,3.49718]
[1728118164566,0.34181335,2418.8,2418.7,0.28938]
[1728118165566,0.34181335,2418.8,2418.7,3.49718]
[1728118166070,0.34181335,2418.8,2418.7,3.2078]
[1728118166570,0.34181335,2418.8,2418.6,0.7067]
[1728118166770,0.34181335,2418.7,2418.6,0.7067]
[1728118167172,0.34181335,2418.7,2418.6,4.8411]
[1728118167671,0.34181335,2418.7,2418.6,8.0489]
[1728118167878,0.34181335,2418.7,2418.6,4.8411]
[1728118168175,0.34181335,2418.7,2418.6,3.9145]
[1728118168374,0.34181335,2418.7,2418.6,0.7067]
[1728118168775,0.34181335,2418.7,2418.6,3.9145]
[1728118169278,1.1199,2419.1,2418.6,3.6251]
[1728118169468,0.3416891,2419.0,2418.7,0.28939]
[1728118169778,0.3416891,2418.9,2418.7,0.28939]
[1728118170076,0.3416891,2418.8,2418.7,0.28939]
[1728118170674,0.3416891,2418.8,2418.7,3.49719]
[1728118170871,0.3416891,2418.8,2418.7,3.2078]
[1728118171071,1.40925,2419.1,2418.7,3.2078]
[1728118171777,1.40925,2419.1,2418.7,0.28939]
[1728118172279,1.40925,2419.1,2418.7,3.49719]
[1728118174367,1.40925,2419.1,2418.7,0.28939]
[1728118174569,1.40925,2419.1,2418.8,3.2078]
[1728118174769,1.1199,2419.1,2418.8,3.2078]
[1728118175368,1.40924,2419.1,2418.8,3.2078]
[1728118175573,1.40924,2419.1,2418.7,0.28939]
[1728118176075,1.40924,2419.1,2418.8,3.2078]
[1728118176774,1.40924,2419.1,2418.7,0.28939]